bitfinex/quotes_BTCUSD_20241223
["timestamp","ask_amount","ask_price","bid_price","bid_amount"]
[1734965372174,0.00053487,93983.0,93981.0,0.212808]
[1734965372388,0.00053487,93983.0,93982.0,0.12526712]
[1734965372598,0.00053487,93983.0,93982.0,0.0212808]
[1734965373495,0.0929783,94012.0,93982.0,0.25286712]
[1734965373695,0.0499,94048.0,93983.0,0.20398632]
[1734965373696,0.00016043,94010.0,93983.0,0.20398632]
[1734965373902,0.00016043,94010.0,94002.0,0.212759]
[1734965374115,0.00016043,94010.0,94003.0,0.0212759]
[1734965374320,0.00016043,94010.0,94003.0,0.212759]
[1734965374786,0.00016043,94010.0,94003.0,0.212757]
[1734965374995,0.00016043,94010.0,94009.0,0.212745]
[1734965375208,0.00016043,94010.0,94009.0,0.342945]
[1734965375424,0.0001712,94047.0,94012.0,0.1]
[1734965375635,0.00033154,94047.0,94030.0,0.24178952]
[1734965375849,0.00033154,94047.0,94042.0,0.212669]
[1734965376276,0.00033154,94047.0,94040.0,0.212675]
[1734965376479,0.00033154,94047.0,94041.0,0.212673]
[1734965376697,0.00033154,94047.0,94038.0,0.18333778]
[1734965377114,0.00033154,94047.0,94037.0,0.02152393]
[1734965377292,0.00033154,94047.0,94032.0,0.425385]
[1734965377529,0.00033154,94047.0,94027.0,0.02088041]
[1734965377758,0.00132928,94046.0,94041.0,0.003]
[1734965377987,0.00132928,94046.0,94028.0,0.425404]
[1734965378197,0.00033154,94047.0,94030.0,0.24178952]
[1734965378407,0.00033154,94047.0,94045.0,0.212664]
[1734965379256,0.00033154,94047.0,94041.0,0.003]
[1734965379923,0.00033154,94047.0,94042.0,0.21267]
[1734965380130,0.00033154,94047.0,94045.0,0.003]
[1734965380333,0.00033154,94047.0,94046.0,0.31664732]
[1734965380548,0.00033154,94047.0,94046.0,0.3662818]
[1734965381160,0.00133154,94047.0,94046.0,0.3662818]
[1734965381584,0.00133154,94047.0,94046.0,0.293122]
[1734965381804,0.00333154,94047.0,94046.0,0.39710832]
[1734965382191,0.00233154,94047.0,94046.0,0.293122]
[1734965382651,0.00333154,94047.0,94046.0,0.296122]
[1734965382785,0.00333154,94047.0,94046.0,0.083461]
[1734965383631,0.00333154,94047.0,94046.0,0.012]
[1734965387165,0.00333154,94047.0,94042.0,0.42434]
[1734965387993,0.00233154,94047.0,94042.0,0.42434]
[1734965388411,0.00133154,94047.0,94042.0,0.42534]
[1734965388616,0.00133154,94047.0,94045.0,0.0801]
[1734965388821,0.00133154,94047.0,94046.0,0.212661]
[1734965389239,0.00133154,94047.0,94042.0,0.001]
[1734965389446,0.00033154,94047.0,94028.0,0.2928]
[1734965389652,0.00233154,94047.0,94045.0,0.001]
[1734965389862,0.10531556,94046.0,94045.0,0.001]
[1734965390304,0.212748,94008.0,93980.0,0.1266]
[1734965390514,0.10531609,94007.0,93980.0,0.0478]
[1734965390727,0.10531609,94007.0,93983.0,0.02083527]
[1734965390932,0.10531609,94007.0,93979.0,0.06392985]
[1734965391147,0.10531609,94007.0,93985.0,0.212799]
[1734965391349,0.212752,94006.0,93982.0,0.02150394]
[1734965391551,0.1053162,94005.0,93981.0,0.00016043]
[1734965392230,0.638268,94004.0,93981.0,0.00016043]
[1734965392447,0.212789,93990.0,93981.0,0.00016043]
[1734965392645,0.10531643,93989.0,93981.0,0.00016043]
[1734965392871,0.00133011,93989.0,93981.0,0.00016043]
[1734965393081,0.00132998,94001.0,93982.0,0.02129764]
[1734965393289,0.10398632,94000.0,93982.0,0.02129764]
[1734965393486,0.00132998,93999.0,93981.0,0.00016043]
[1734965393704,0.10398632,93998.0,93981.0,0.00016043]
[1734965393888,0.21279,93989.0,93981.0,0.00016043]
[1734965394259,0.212802,93984.0,93981.0,0.00016043]
[1734965394467,0.00133014,93983.0,93981.0,0.00016043]
[1734965394685,0.212806,93982.0,93981.0,0.00016043]
[1734965394892,0.31679232,93982.0,93981.0,0.00016043]
[1734965395076,0.10398632,93982.0,93981.0,0.00016043]
[1734965395282,0.10531652,93982.0,93981.0,0.00016043]
[1734965396005,0.212788,93990.0,93981.0,0.00016043]
[1734965396212,0.212803,93984.0,93981.0,0.00016043]
[1734965396417,0.212749,94008.0,93981.0,0.00016043]
[1734965396418,0.0013302,93983.0,93981.0,0.00016043]
[1734965396631,0.00132992,94019.0,93982.0,0.10398632]
[1734965396835,0.212727,94017.0,93986.0,0.0764]
[1734965397045,0.212732,94015.0,93987.0,0.06631387]
[1734965397250,0.0752,94034.0,93983.0,0.212804]
[1734965397251,0.10531608,94014.0,93983.0,0.212804]
[1734965397508,0.212768,93999.0,93981.0,0.02816083]
[1734965397688,0.002,93990.0,93981.0,0.02816083]
[1734965397861,0.002,93990.0,93981.0,0.00016043]
[1734965398073,0.002,93990.0,93987.0,0.02108826]
[1734965398074,0.10398632,93989.0,93987.0,0.02108826]
[1734965398236,0.1053163,93989.0,93981.0,0.00016043]
[1734965398436,0.212806,93982.0,93981.0,0.00016043]
[1734965398680,0.212793,93988.0,93981.0,0.00016043]
[1734965398903,0.00133012,93987.0,93981.0,0.00016043]
[1734965399285,0.212797,93986.0,93981.0,0.00024603]
[1734965399482,0.00133012,93985.0,93981.0,0.00024603]
[1734965399700,0.212802,93984.0,93981.0,0.00024603]
[1734965399900,0.00133015,93983.0,93981.0,0.00024603]
[1734965400096,0.00133012,93987.0,93981.0,0.00024603]
[1734965400295,0.312732,94015.0,93981.0,0.00024603]
[1734965400565,0.001,93986.0,93981.0,0.00024603]
[1734965400769,0.212802,93984.0,93981.0,0.00024603]
[1734965400981,0.212806,93982.0,93981.0,0.00024603]
[1734965401159,0.31679232,93982.0,93981.0,0.00024603]
[1734965401592,0.39689232,93982.0,93981.0,3e-08]
[1734965401799,0.49689232,93982.0,93981.0,3e-08]
[1734965402011,0.79259232,93982.0,93981.0,3e-08]
[1734965402223,0.212872,93953.0,93941.0,0.09694051]
[1734965402423,0.31685832,93953.0,93952.0,0.00062057]
[1734965402827,0.21287,93954.0,93952.0,0.00062057]
[1734965403033,0.1053169,93953.0,93952.0,0.00062057]
[1734965403651,0.10398632,93953.0,93952.0,0.00062057]
[1734965403861,0.10531698,93953.0,93952.0,0.00062057]
[1734965404070,0.10831698,93953.0,93952.0,0.00062057]
[1734965404450,0.12698773,93953.0,93952.0,0.00062057]
[1734965404892,0.12498773,93953.0,93952.0,0.00062057]
[1734965405183,0.02100141,93953.0,93952.0,0.00062057]
[1734965405386,0.002,93953.0,93952.0,0.00062057]
[1734965405566,0.005,93953.0,93952.0,0.00062057]
[1734965406012,0.00633059,93953.0,93952.0,0.02155683]
[1734965406220,0.15552317,93953.0,93952.0,0.02155683]
[1734965406430,0.14852317,93953.0,93952.0,0.00062057]
[1734965406641,0.1,93999.0,93952.0,0.00062057]
[1734965406846,0.002,93953.0,93942.0,0.212897]
[1734965407268,0.212854,93961.0,93941.0,0.05364667]
[1734965407473,0.10398632,93952.0,93941.0,0.05364667]
[1734965407682,0.212884,93948.0,93941.0,0.05364667]
[1734965407888,0.00133067,93947.0,93941.0,0.05364667]
[1734965408284,0.00139318,93947.0,93941.0,0.05364667]
[1734965408484,0.22955909,93946.0,93941.0,0.05364667]
[1734965408710,0.00133062,93945.0,93941.0,0.05364667]
[1734965408914,0.212892,93944.0,93941.0,0.05364667]
[1734965409123,0.212891,93945.0,93941.0,0.05364667]
[1734965409327,0.31688132,93943.0,93941.0,0.05364667]
[1734965409532,0.00133084,93942.0,93941.0,0.05364667]
[1734965409740,0.10398632,93942.0,93941.0,0.05464667]
[1734965409950,0.10531706,93942.0,93941.0,0.05464667]
[1734965410159,0.10531706,93942.0,93941.0,0.05364667]
[1734965410337,0.10531706,93942.0,93941.0,0.05464667]
[1734965410580,6.251e-05,93947.0,93941.0,0.05464667]
[1734965410762,6.251e-05,93947.0,93941.0,0.05373227]
[1734965411002,6.251e-05,93947.0,93941.0,0.05673227]
[1734965411207,0.10398632,93946.0,93941.0,0.05673227]
[1734965411426,0.00133072,93945.0,93941.0,0.05673227]
[1734965411634,0.10398632,93944.0,93941.0,0.05673227]
[1734965411843,0.00133074,93943.0,93941.0,0.05673227]
[1734965412050,0.10398632,93942.0,93941.0,0.05673227]
[1734965412271,0.10398632,93942.0,93941.0,0.05373227]
[1734965412473,0.30398632,93942.0,93941.0,0.05373227]
[1734965412687,0.30398632,93942.0,93941.0,2.7e-07]
[1734965412901,0.212931,93927.0,93921.0,0.00056116]
[1734965413101,0.10398632,93922.0,93921.0,0.00056116]
[1734965413305,0.10531763,93922.0,93921.0,0.00056116]
[1734965414071,0.12199313,93922.0,93921.0,0.00056116]
[1734965414470,0.12366182,93922.0,93921.0,0.00056116]
[1734965415072,0.003,93922.0,93921.0,0.00056116]
[1734965415305,0.008,93922.0,93921.0,0.00056116]
[1734965415504,6.251e-05,93947.0,93923.0,0.1]
[1734965415699,6.251e-05,93947.0,93924.0,0.10398632]
[1734965415923,0.10398632,93946.0,93921.0,0.08476041]
[1734965416124,0.002,93922.0,93921.0,0.02922029]
[1734965416327,0.002,93922.0,93921.0,0.13320661]
[1734965416538,0.001,93922.0,93921.0,0.13320661]
[1734965416773,0.001,93922.0,93921.0,0.05085472]
[1734965416973,0.001,93922.0,93921.0,0.25484104]
[1734965417185,0.00906251,93947.0,93943.0,0.0492]
[1734965417424,0.00906251,93947.0,93945.0,0.0781]
[1734965417425,6.251e-05,93947.0,93945.0,0.0781]
[1734965417658,6.251e-05,93947.0,93946.0,0.31687432]
[1734965418430,6.251e-05,93947.0,93946.0,0.212888]
[1734965418651,6.251e-05,93947.0,93946.0,0.31687432]
[1734965418817,6.251e-05,93947.0,93946.0,0.38316211]
[1734965419223,0.00106251,93947.0,93946.0,0.38316211]
[1734965419612,0.00206251,93947.0,93946.0,0.02801362]
[1734965419793,0.00106251,93947.0,93946.0,0.02101362]
[1734965420245,0.00206251,93947.0,93946.0,0.013]
[1734965420450,0.00206251,93947.0,93946.0,0.004]
[1734965420451,6.251e-05,93947.0,93946.0,0.004]
[1734965420655,6.251e-05,93947.0,93946.0,0.10398632]
[1734965420859,0.00106251,93947.0,93946.0,0.1576654]
[1734965421070,0.00106251,93947.0,93946.0,0.3059654]
[1734965421712,0.00106251,93947.0,93946.0,0.2059654]
[1734965421928,6.251e-05,93947.0,93946.0,0.1989654]
[1734965422142,0.1,94012.0,93946.0,0.1989654]
[1734965422143,0.0756,94020.0,93969.0,0.1]
[1734965422349,0.0756,94020.0,94000.0,0.45485635]
[1734965422350,0.00053517,94008.0,94000.0,0.45485635]
[1734965422559,0.00053517,94008.0,94001.0,0.1308]
[1734965422760,0.00053517,94008.0,94004.0,0.212754]
[1734965422965,0.00053517,94008.0,94006.0,0.212752]
[1734965423170,0.00053517,94008.0,94007.0,0.10398632]
[1734965423384,0.00053517,94008.0,94007.0,0.06118181]
[1734965423588,0.00053517,94008.0,94007.0,0.16516813]
[1734965423798,0.00253517,94008.0,94007.0,0.16516813]
[1734965424211,0.0796,94068.0,94007.0,0.53635498]
[1734965424421,0.00150051,94076.0,94040.0,0.335475]
[1734965424636,0.0001714,94076.0,94046.0,0.212661]
[1734965424847,0.00033173,94047.0,94046.0,0.31664732]
[1734965425061,0.00033173,94047.0,94040.0,0.1228]
[1734965425274,0.00033173,94047.0,94046.0,0.02165364]
[1734965425686,0.00033173,94047.0,94043.0,0.212667]
[1734965425885,0.00033173,94047.0,94043.0,0.31565332]
[1734965426101,0.00033173,94047.0,94043.0,0.211667]
[1734965426311,0.00033173,94047.0,94028.0,0.1]
[1734965426312,0.00033173,94047.0,94046.0,0.002]
[1734965426516,0.00533173,94047.0,94040.0,0.001]
[1734965426729,0.31797667,94046.0,94040.0,0.001]
[1734965426940,0.31797667,94046.0,94005.0,0.212754]
[1734965426941,0.212693,94033.0,94005.0,0.212754]
[1734965427154,0.212715,94023.0,94007.0,0.02100141]
[1734965427361,0.10398632,94032.0,94008.0,0.03635644]
[1734965427576,0.212676,94040.0,93981.0,0.1298]
[1734965427577,0.212745,94009.0,93981.0,0.1298]
[1734965427798,0.00132981,94008.0,93988.0,0.212793]
[1734965428002,0.00132981,94008.0,93987.0,0.02095452]
[1734965428003,0.21275,94007.0,93987.0,0.02095452]
[1734965428216,0.00132981,94006.0,93987.0,0.02095452]
[1734965428417,0.212745,94009.0,93987.0,0.02095452]
[1734965428622,0.00132981,94008.0,93988.0,0.05092986]
[1734965428855,0.21275,94007.0,93988.0,0.05092986]
[1734965429068,0.212771,93998.0,93987.0,0.02095452]
[1734965429277,0.212771,93998.0,93962.0,0.312851]
[1734965429278,0.10531633,93997.0,93962.0,0.259651]
[1734965429487,0.212792,93989.0,93968.0,0.212837]
[1734965429692,0.21281,93981.0,93962.0,0.0468]
[1734965429908,0.21281,93981.0,93953.0,0.212871]
[1734965429909,0.0013301,93980.0,93953.0,0.212871]
[1734965430780,0.003,93998.0,93953.0,0.212871]
[1734965430781,0.003,93998.0,93965.0,0.212843]
[1734965430986,0.212813,93979.0,93966.0,0.0212843]
[1734965431192,0.00133019,93978.0,93970.0,4e-05]
[1734965431619,0.212797,93987.0,93970.0,4e-05]
[1734965431821,0.00133009,93986.0,93970.0,4e-05]
[1734965432242,0.00133009,93986.0,93970.0,0.00057517]
[1734965432449,0.00133009,93986.0,93971.0,0.02134152]
[1734965432660,0.212762,94002.0,93971.0,0.02134152]
[1734965432661,0.312708,94026.0,93971.0,0.12994683]
[1734965432878,0.001,93987.0,93971.0,0.12994683]
[1734965433086,0.001,93987.0,93981.0,0.212808]
[1734965433303,0.001,93987.0,93980.0,0.34209235]
[1734965433304,0.00132982,94032.0,93991.0,0.0484]
[1734965433507,0.10398632,94031.0,94000.0,0.24209235]
[1734965433713,0.4267256,94030.0,94005.0,0.212752]
[1734965433922,0.212685,94036.0,94011.0,0.21274]
[1734965434100,0.212689,94034.0,94001.0,0.02420924]
[1734965434307,0.212693,94032.0,94008.0,0.212746]
[1734965434537,0.212693,94032.0,94001.0,0.02420924]
[1734965434538,0.13946745,94054.0,94020.0,0.24209235]
[1734965434721,0.0001714,94071.0,94038.0,0.212679]
[1734965434722,0.212609,94070.0,94038.0,0.212679]
[1734965434924,0.0001714,94071.0,94030.0,0.24209235]
[1734965434925,0.00016053,94040.0,94039.0,0.31666332]
[1734965435129,0.00016053,94040.0,94031.0,0.31668132]
[1734965435403,0.212718,94022.0,94001.0,0.06950924]
[1734965435610,0.10398632,94039.0,94013.0,0.212736]
[1734965435822,0.10398632,94039.0,94006.0,0.02171769]
[1734965435823,0.00132928,94038.0,94015.0,0.212732]
[1734965436036,0.00016053,94040.0,94021.0,0.212718]
[1734965436242,0.00148985,94040.0,94022.0,0.07421653]
[1734965436473,0.00148985,94040.0,94021.0,0.212718]
[1734965436685,0.003,94022.0,94004.0,0.14769029]
[1734965436899,0.003,94022.0,94013.0,0.001]
[1734965436900,0.10398632,94021.0,94013.0,0.001]
[1734965437121,0.10398632,94021.0,93984.0,0.1]
[1734965437122,0.003,94022.0,94005.0,0.0033366]
[1734965437332,0.212718,94021.0,93998.0,0.21277]
[1734965437538,0.003,94022.0,94008.0,0.212746]
[1734965437747,0.003,94022.0,94003.0,0.212758]
[1734965437961,0.212683,94037.0,94009.0,0.00333557]
[1734965438170,0.00132952,94036.0,94010.0,0.34607867]
[1734965438390,0.00416053,94040.0,94011.0,0.04460787]
[1734965438604,0.21683653,94040.0,94021.0,0.212716]
[1734965438812,0.00132929,94039.0,94012.0,0.10398632]
[1734965439043,0.10398632,94039.0,94012.0,0.212738]
[1734965439250,0.212692,94033.0,94013.0,0.00333453]
[1734965439458,0.00016053,94040.0,94014.0,0.13005466]
[1734965439671,0.31666332,94039.0,94014.0,0.02606834]
[1734965439899,0.00132939,94038.0,94013.0,0.00333453]
[1734965440099,0.212722,94020.0,94015.0,0.00744356]
[1734965440320,0.212725,94018.0,94015.0,0.00410954]
[1734965440529,0.212729,94016.0,94015.0,0.00410954]
[1734965440732,0.31671532,94016.0,94015.0,0.00410954]
[1734965440948,0.212749,94008.0,93986.0,0.212797]
[1734965441151,0.212762,94002.0,93981.0,0.02164523]
[1734965441356,0.10398632,94007.0,93987.0,0.00339851]
[1734965441565,0.00132986,94006.0,93988.0,0.02378497]
[1734965441773,0.00132977,94008.0,93988.0,0.02718322]
[1734965441973,0.212773,93997.0,93988.0,0.00339825]
[1734965442206,0.21279,93990.0,93988.0,0.00339825]
[1734965442393,0.00132997,93989.0,93986.0,0.001]
[1734965442596,0.212793,93988.0,93986.0,0.001]
[1734965442800,0.00133009,93987.0,93986.0,0.001]
[1734965443055,0.10398632,93989.0,93970.0,0.0001256]
[1734965443256,0.00216044,94008.0,93971.0,0.04258056]
[1734965443464,0.212754,94005.0,93980.0,0.212809]
[1734965443666,0.212754,94005.0,93971.0,0.10740857]
[1734965443667,0.00132986,94004.0,93982.0,0.212806]
[1734965444104,0.00132986,94004.0,93983.0,0.00341915]
[1734965444508,0.004,93988.0,93984.0,0.212802]
[1734965444795,0.004,93988.0,93985.0,0.212799]
[1734965444996,0.00132986,94004.0,93985.0,0.00341863]
[1734965445188,0.212759,94003.0,93985.0,0.00341863]
[1734965445638,0.212754,94006.0,93985.0,0.00341863]
[1734965445778,0.00132986,94005.0,93986.0,0.212797]
[1734965446216,0.00132986,94005.0,93987.0,0.04844789]
[1734965446426,0.00016044,94008.0,93988.0,0.31677732]
[1734965446660,0.00016044,94008.0,93989.0,0.21279]
[1734965446853,0.00016044,94008.0,93989.0,0.10398632]
[1734965447053,0.00016044,94008.0,93989.0,0.10740391]
[1734965447290,0.10414676,94008.0,93989.0,0.00341759]
[1734965447497,0.212788,93990.0,93989.0,0.00341759]
[1734965447701,0.212774,93997.0,93976.0,0.06426566]
[1734965447907,0.212763,94002.0,93976.0,0.06426566]
[1734965448107,0.00132989,94001.0,93982.0,0.212806]
[1734965448311,0.00132989,94001.0,93982.0,0.25748824]
[1734965448526,0.212763,94002.0,93983.0,0.00312158]
[1734965448726,0.00016044,94008.0,93983.0,0.00312158]
[1734965448727,0.21290944,94008.0,93983.0,0.00312158]
[1734965448933,0.007,93997.0,93983.0,0.00312158]
[1734965449136,0.212778,93995.0,93983.0,0.00312158]
[1734965449392,0.10398632,94007.0,93983.0,0.00312158]
[1734965449608,0.00116044,94008.0,93999.0,0.1]
[1734965449822,0.00132941,94046.0,94001.0,0.212763]
[1734965450024,0.212682,94037.0,94016.0,0.425456]
[1734965450235,0.00033152,94043.0,94026.0,0.212707]
[1734965450507,0.00033152,94043.0,94001.0,0.1]
[1734965450508,0.00033152,94043.0,94030.0,0.24209235]
[1734965450710,0.00033152,94043.0,94031.0,0.05545873]
[1734965450912,0.00033152,94043.0,94031.0,0.23354486]
[1734965451125,0.00033152,94043.0,94032.0,0.00330002]
[1734965451531,0.212655,94049.0,94032.0,0.00330002]
[1734965451745,0.006,94043.0,94032.0,0.00346034]
[1734965451947,0.212686,94035.0,94032.0,0.00346034]
[1734965452168,0.10502439,94034.0,94032.0,0.00346034]
[1734965452388,0.212691,94033.0,94032.0,0.00446034]
[1734965454335,0.00103807,94039.0,94032.0,0.00016032]
[1734965454539,0.001,94033.0,94032.0,0.00016032]
[1734965454742,0.001,94033.0,94032.0,0.02144645]
[1734965454945,0.001,94033.0,94032.0,0.024676]
[1734965455153,0.00103807,94054.0,94032.0,0.024676]
[1734965455357,0.001,94035.0,94032.0,0.237367]
[1734965455605,0.001,94035.0,94033.0,0.0450068]
[1734965455813,0.001,94035.0,94033.0,0.2576958]
[1734965456018,0.001,94035.0,94034.0,0.00322904]
[1734965456647,0.003,94041.0,94034.0,0.00322904]
[1734965457056,0.003,94041.0,94036.0,0.212682]
[1734965457268,0.0001712,94057.0,94037.0,0.16931926]
[1734965457500,0.0001712,94057.0,94054.0,0.212643]
[1734965457687,0.0001712,94057.0,94055.0,0.10504929]
[1734965457889,0.0001712,94057.0,94055.0,0.00307669]
[1734965458323,0.0001712,94057.0,94044.0,0.212664]
[1734965458530,0.0011712,94057.0,94056.0,0.00349158]
[1734965458734,0.0011712,94057.0,94045.0,0.02668436]
[1734965458941,0.0011712,94057.0,94056.0,0.00349158]
[1734965458942,0.0021712,94057.0,94056.0,0.00349158]
[1734965459116,0.0021712,94057.0,94055.0,0.007]
[1734965459526,0.0021712,94057.0,94056.0,0.00349158]
[1734965459724,0.0001712,94057.0,94056.0,0.00349158]
[1734965459925,0.0001712,94057.0,94056.0,0.04287836]
[1734965460124,0.0001712,94057.0,94056.0,0.04741077]
[1734965460326,0.0001712,94057.0,94056.0,0.04634774]
[1734965460726,0.0001712,94057.0,94056.0,0.04934774]
[1734965461307,0.0001712,94057.0,94056.0,0.00646938]
[1734965461706,0.0001712,94057.0,94056.0,0.007]
[1734965461923,0.0001712,94057.0,94056.0,0.00989115]
[1734965462131,0.0001712,94057.0,94056.0,0.007]
[1734965462357,0.0001712,94057.0,94042.0,0.212669]
[1734965462565,0.0001712,94057.0,94056.0,0.00289115]
[1734965462731,0.0001712,94057.0,94056.0,0.004]
[1734965462936,0.0001712,94057.0,94056.0,0.00889115]
[1734965463169,0.00120927,94057.0,94056.0,0.006]
[1734965463578,0.00120927,94057.0,94038.0,0.212679]
[1734965463778,0.00120927,94057.0,94056.0,0.001]
[1734965463985,0.0001712,94057.0,94056.0,0.00389435]
[1734965464180,0.0001712,94057.0,94056.0,0.00289435]
[1734965464432,0.0001712,94057.0,94050.0,4e-05]
[1734965464433,0.0001712,94057.0,94051.0,0.21265]
[1734965464626,0.0001712,94057.0,94056.0,0.04274825]
[1734965464784,0.0001712,94057.0,94056.0,0.00306308]
[1734965464979,0.0001712,94057.0,94056.0,0.00597441]
[1734965465183,0.0001712,94057.0,94056.0,0.00291133]
[1734965465455,0.0001712,94057.0,94056.0,0.35904935]
[1734965465660,0.0001712,94057.0,94056.0,0.50535317]
[1734965465951,0.0001714,94066.0,94062.0,0.1]
[1734965466165,0.0001714,94066.0,94063.0,0.10504911]
[1734965466375,0.0001714,94066.0,94064.0,0.212621]
[1734965466584,0.0001714,94066.0,94065.0,0.35504911]
[1734965466792,0.0001714,94066.0,94065.0,0.0028238]
[1734965466998,0.0001714,94066.0,94065.0,0.00165281]
[1734965467200,0.0013317,94066.0,94065.0,0.00165281]
[1734965467406,0.0013317,94066.0,94056.0,0.24409235]
[1734965467407,0.0013317,94066.0,94057.0,0.212637]
[1734965467609,0.0003317,94066.0,94062.0,0.212625]
[1734965467813,0.0003317,94066.0,94065.0,0.002]
[1734965468219,0.0003317,94066.0,94065.0,0.00507076]
[1734965469201,0.0003317,94066.0,94065.0,0.00307076]
[1734965469403,0.0003317,94066.0,94065.0,0.01107076]
[1734965469600,0.0003317,94066.0,94065.0,0.05576638]
[1734965469601,0.0033317,94066.0,94065.0,0.05576638]
[1734965470037,0.0003317,94066.0,94065.0,0.05576638]
[1734965470185,0.0003317,94066.0,94065.0,0.10276721]
[1734965470391,0.0003317,94066.0,94065.0,0.01407076]
[1734965470662,0.0003317,94066.0,94065.0,0.008]
[1734965470885,0.10431802,94066.0,94065.0,0.008]
[1734965471027,0.31797209,94066.0,94065.0,0.011]
[1734965471227,0.38750887,94066.0,94065.0,0.011]
[1734965471432,0.38750887,94066.0,94065.0,0.003]
[1734965471634,0.17489287,94066.0,94044.0,0.03281145]
[1734965471935,0.212664,94045.0,94044.0,0.03281145]
[1734965472135,0.31665032,94045.0,94044.0,0.03281145]
[1734965472543,0.212666,94044.0,94039.0,0.1895429]
[1734965472743,0.2,94037.0,94030.0,8.55e-05]
[1734965473083,0.10398632,94037.0,94036.0,0.19792862]
[1734965473749,0.425368,94036.0,94030.0,8.55e-05]
[1734965473950,0.10502439,94035.0,94030.0,8.55e-05]
[1734965474159,0.00016021,94037.0,94030.0,8.55e-05]
[1734965474368,0.00216021,94037.0,94031.0,0.02127965]
[1734965474605,0.00216021,94037.0,94030.0,8.55e-05]
[1734965474809,0.10398632,94036.0,94030.0,8.55e-05]
[1734965475018,0.00103807,94035.0,94030.0,8.55e-05]
[1734965475221,0.00103807,94036.0,94030.0,8.55e-05]
[1734965475794,0.002,94035.0,94030.0,8.55e-05]
[1734965476391,0.33856455,94034.0,94030.0,8.55e-05]
[1734965476590,0.212693,94032.0,94030.0,8.55e-05]
[1734965476794,0.10502439,94031.0,94030.0,8.55e-05]
[1734965477438,0.45502439,94031.0,94030.0,8.55e-05]
[1734965477647,0.45398632,94031.0,94030.0,5e-07]
[1734965477826,0.312718,94021.0,94020.0,4e-05]
[1734965478204,0.212763,94001.0,94000.0,0.00254]
[1734965478393,0.31674932,94001.0,94000.0,0.00254]
[1734965478602,0.40097525,94001.0,94000.0,0.00254]
[1734965478813,0.212786,93991.0,93990.0,4e-05]
[1734965479026,0.212786,93991.0,93988.0,5e-07]
[1734965479027,0.2,93989.0,93988.0,5e-07]
[1734965479232,0.45502439,93989.0,93988.0,5e-07]
[1734965479447,0.20398632,93989.0,93988.0,0.00053567]
[1734965479659,0.10502439,93989.0,93988.0,0.00053567]
[1734965480711,0.11202439,93989.0,93988.0,0.00053567]
[1734965481575,0.21202439,93989.0,93988.0,0.00053567]
[1734965481793,0.212831,93971.0,93950.0,4e-05]
[1734965482006,0.31681732,93971.0,93950.0,4e-05]
[1734965482233,0.00353408,93989.0,93950.0,0.0011043]
[1734965482448,0.10398632,93988.0,93958.0,0.21286]
[1734965482659,0.212809,93981.0,93958.0,0.21286]
[1734965482866,0.212823,93975.0,93952.0,0.212873]
[1734965483094,0.003,93971.0,93952.0,0.212873]
[1734965483513,0.10698632,93971.0,93950.0,4e-05]
[1734965483716,0.003,93971.0,93950.0,4e-05]
[1734965483937,0.003,93971.0,93951.0,0.212876]
[1734965484152,0.212818,93977.0,93951.0,0.212876]
[1734965484357,0.212818,93977.0,93970.0,0.0061256]
[1734965484358,0.001,93971.0,93970.0,0.0061256]
[1734965484786,0.001,93971.0,93970.0,0.0001256]
[1734965484978,0.001,93971.0,93970.0,0.0021256]
[1734965485844,0.212829,93972.0,93970.0,0.0001256]
[1734965486065,0.00103807,93971.0,93970.0,0.0001256]
[1734965486284,0.15809223,93971.0,93970.0,0.0001256]
[1734965486715,0.10398632,93971.0,93970.0,0.0021256]
[1734965486930,0.10502439,93971.0,93970.0,0.0021256]
[1734965487140,0.10602439,93971.0,93970.0,0.0081256]
[1734965487368,0.10398632,93971.0,93970.0,0.0001256]
[1734965487574,0.00103807,93971.0,93970.0,0.0001256]
[1734965487792,0.00703807,93971.0,93970.0,0.0011256]
[1734965488042,0.11102439,93971.0,93970.0,0.0001256]
[1734965488268,0.10998632,93971.0,93970.0,0.0001256]
[1734965488474,0.11602439,93971.0,93970.0,0.0001256]
[1734965488732,0.11002439,93971.0,93970.0,0.0001256]
[1734965488946,0.212866,93956.0,93940.0,0.0462]
[1734965489152,0.11802439,93971.0,93941.0,0.11743914]
[1734965489153,0.013,93971.0,93941.0,0.11743914]
[1734965489364,0.013,93971.0,93949.0,0.21288]
[1734965489572,0.00103807,93970.0,93947.0,0.212885]
[1734965489779,0.212836,93969.0,93947.0,0.212885]
[1734965489992,0.212851,93963.0,93947.0,0.0212123]
[1734965490209,0.212851,93963.0,93947.0,0.05488033]
[1734965490385,0.10398632,93969.0,93947.0,0.05504077]
[1734965490589,0.004,93971.0,93948.0,0.10505061]
[1734965490810,0.004,93971.0,93947.0,0.05504077]
[1734965490811,0.00103807,93968.0,93947.0,0.05504077]
[1734965491018,0.21284,93967.0,93947.0,0.02137274]
[1734965491252,0.00103807,93966.0,93947.0,0.02137274]
[1734965491455,0.10502439,93966.0,93947.0,0.00016044]
[1734965491658,0.212879,93950.0,93947.0,0.00116044]
[1734965491930,0.212883,93948.0,93947.0,0.00016044]
[1734965492209,0.26585783,93948.0,93947.0,0.00116044]
[1734965492449,0.212883,93948.0,93947.0,0.00116044]
[1734965492698,0.31686932,93948.0,93947.0,0.00116044]
[1734965493410,0.31686932,93948.0,93947.0,0.00016044]
[1734965493627,0.31786932,93948.0,93947.0,0.00516044]
[1734965493867,0.41786932,93948.0,93947.0,4.4e-07]
[1734965494080,0.21291,93936.0,93935.0,8.55e-05]
[1734965494294,0.21291,93936.0,93935.0,0.00024588]
[1734965494295,0.31689632,93936.0,93935.0,0.00024588]
[1734965494495,0.21291,93936.0,93935.0,0.00024588]
[1734965495341,0.21291,93936.0,93935.0,0.00224588]
[1734965496192,0.21291,93936.0,93935.0,0.00024588]
[1734965496675,0.000171,93948.0,93935.0,0.00024588]
[1734965496851,0.212885,93947.0,93935.0,0.00024588]
[1734965497066,0.000171,93948.0,93935.0,0.00524588]
[1734965497273,0.000171,93948.0,93936.0,0.29017444]
[1734965497476,0.000171,93948.0,93936.0,0.0762]
[1734965497728,0.000171,93948.0,93936.0,0.28911]
[1734965497974,0.10398632,93947.0,93936.0,0.0762]
[1734965498152,0.00103807,93946.0,93936.0,0.0762]
[1734965499226,0.019171,93948.0,93936.0,0.0762]
[1734965499227,0.00103807,93947.0,93936.0,0.0762]
[1734965499442,0.10502439,93947.0,93936.0,0.0762]
[1734965499883,0.212892,93944.0,93936.0,0.0762]